[Event "Early-Titled-Tuesday-Blitz-September-12-2023"]
[Site "Chess.com"]
[Date "2023.09.12"]
[Round "9"]
[White "Roman_Ovetchkin"]
[Black "OK97"]
[Result "0-1"]
[WhiteElo "2657"]
[BlackElo "2834"]
[TimeControl "180+1"]
[EndTime "9:46:14 PDT"]
[Termination "OK97 won on time"]

1. d4 {[%clk 0:03:00.9]} 1... Nf6 {[%clk 0:02:59.7]} 2. c4 {[%clk 0:03:00.4]}
2... g6 {[%clk 0:03:00.2]} 3. Nc3 {[%clk 0:02:58.5]} 3... Bg7 {[%clk 0:03:00.6]}
4. e4 {[%clk 0:02:58.3]} 4... d6 {[%clk 0:03:00.9]} 5. Nf3 {[%clk 0:02:57.9]}
5... Bg4 {[%clk 0:03:00.3]} 6. Be2 {[%clk 0:02:58]} 6... Bxf3 {[%clk 0:03:00.5]}
7. Bxf3 {[%clk 0:02:57.2]} 7... e5 {[%clk 0:03:01.1]} 8. d5 {[%clk 0:02:56.8]}
8... h5 {[%clk 0:03:00.9]} 9. Qb3 {[%clk 0:02:39.4]} 9... b6 {[%clk 0:02:57]}
10. Qa4+ {[%clk 0:02:26]} 10... Nbd7 {[%clk 0:02:55.2]} 11. O-O {[%clk
0:02:14.3]} 11... Kf8 {[%clk 0:02:47.7]} 12. Qc2 {[%clk 0:02:10.7]} 12... a5
{[%clk 0:02:42.8]} 13. b3 {[%clk 0:02:10.7]} 13... Bh6 {[%clk 0:02:25.2]} 14.
Bxh6+ {[%clk 0:02:09.5]} 14... Rxh6 {[%clk 0:02:24.9]} 15. a3 {[%clk 0:02:10.1]}
15... Kg7 {[%clk 0:02:14.9]} 16. b4 {[%clk 0:02:10.1]} 16... g5 {[%clk
0:02:12.6]} 17. Rfb1 {[%clk 0:02:01.2]} 17... g4 {[%clk 0:02:12.3]} 18. Be2
{[%clk 0:02:00.6]} 18... Nh7 {[%clk 0:02:06.3]} 19. Nd1 {[%clk 0:01:59.9]} 19...
Qg5 {[%clk 0:02:02.1]} 20. Ne3 {[%clk 0:01:59.5]} 20... Kh8 {[%clk 0:01:58]} 21.
Bd3 {[%clk 0:01:54.9]} 21... h4 {[%clk 0:01:50.9]} 22. Qe2 {[%clk 0:01:46.1]}
22... Rg6 {[%clk 0:01:49.1]} 23. Nf5 {[%clk 0:01:33.5]} 23... Nhf6 {[%clk
0:01:30.6]} 24. Qe3 {[%clk 0:01:26.8]} 24... Qh5 {[%clk 0:01:15.4]} 25. g3
{[%clk 0:01:21.3]} 25... h3 {[%clk 0:01:14.2]} 26. Kf1 {[%clk 0:01:12.3]} 26...
Nh7 {[%clk 0:01:07.1]} 27. f3 {[%clk 0:00:55]} 27... gxf3 {[%clk 0:00:57]} 28.
Qc1 {[%clk 0:00:43.9]} 28... Ndf6 {[%clk 0:00:50.4]} 29. Nh4 {[%clk 0:00:29.8]}
29... Rgg8 {[%clk 0:00:45.7]} 30. Qd2 {[%clk 0:00:25.5]} 30... Ng5 {[%clk
0:00:44]} 31. Qe3 {[%clk 0:00:08.5]} 31... Ng4 {[%clk 0:00:39.8]} 32. Qd2 {[%clk
0:00:09.1]} 32... Nf6 {[%clk 0:00:35.3]} 33. Qe3 {[%clk 0:00:08.4]} 33... Qg4
{[%clk 0:00:33.3]} 34. Re1 {[%clk 0:00:05.9]} 34... axb4 {[%clk 0:00:22]} 35.
axb4 {[%clk 0:00:06.8]} 35... Rxa1 {[%clk 0:00:22.2]} 36. Rxa1 {[%clk
0:00:07.3]} 36... Nfxe4 {[%clk 0:00:19.4]} 37. Bxe4 {[%clk 0:00:07.5]} 37...
Qxe4 {[%clk 0:00:19.6]} 38. Qxe4 {[%clk 0:00:07.5]} 38... Nxe4 {[%clk
0:00:20.5]} 39. Nxf3 {[%clk 0:00:07.8]} 39... b5 {[%clk 0:00:14.3]} 40. cxb5
{[%clk 0:00:06.1]} 40... Nc3 {[%clk 0:00:14.9]} 41. Rc1 {[%clk 0:00:04.2]} 41...
Nxd5 {[%clk 0:00:12.6]} 42. b6 {[%clk 0:00:03.4]} 42... cxb6 {[%clk 0:00:10.1]}
43. Rc6 {[%clk 0:00:03.5]} 43... Rd8 {[%clk 0:00:09.7]} 44. b5 {[%clk
0:00:03.9]} 44... Kg7 {[%clk 0:00:09.1]} 45. Ng5 {[%clk 0:00:03.7]} 45... Kf6
{[%clk 0:00:08]} 46. Nxh3 {[%clk 0:00:02.8]} 46... Kf5 {[%clk 0:00:08.3]} 47.
Nf2 {[%clk 0:00:03]} 47... Ke6 {[%clk 0:00:07.3]} 48. Ne4 {[%clk 0:00:03.1]}
48... f5 {[%clk 0:00:07.9]} 49. Ng5+ {[%clk 0:00:03.2]} 49... Kf6 {[%clk
0:00:08]} 50. Nf3 {[%clk 0:00:03.6]} 50... e4 {[%clk 0:00:08.5]} 51. Nd4 {[%clk
0:00:03.9]} 51... Ke5 {[%clk 0:00:08.9]} 52. Ne2 {[%clk 0:00:04.2]} 52... Ra8
{[%clk 0:00:08.1]} 53. Kf2 {[%clk 0:00:04]} 53... Ra2 {[%clk 0:00:08.2]} 54. h4
{[%clk 0:00:04.3]} 54... f4 {[%clk 0:00:07.9]} 55. Kf1 {[%clk 0:00:02]} 55... f3
{[%clk 0:00:07.8]} 0-1

[Event "Early-Titled-Tuesday-Blitz-September-12-2023"]
[Site "Chess.com"]
[Date "2023.09.12"]
[Round "9"]
[White "Casper"]
[Black "CFalcons8"]
[Result "1-0"]
[WhiteElo "2441"]
[BlackElo "2310"]
[TimeControl "180+1"]
[EndTime "9:46:15 PDT"]
[Termination "Casper won by resignation"]

1. e4 {[%clk 0:03:00.9]} 1... e5 {[%clk 0:01:58.8]} 2. d4 {[%clk 0:03:00.8]}
2... exd4 {[%clk 0:01:58.5]} 3. Qxd4 {[%clk 0:03:01.7]} 3... Nc6 {[%clk
0:01:58.1]} 4. Qe3 {[%clk 0:03:02.3]} 4... g6 {[%clk 0:01:57.1]} 5. Nc3 {[%clk
0:03:02.6]} 5... Bg7 {[%clk 0:01:54.3]} 6. Bd2 {[%clk 0:03:02.7]} 6... d6 {[%clk
0:01:45.3]} 7. O-O-O {[%clk 0:03:02.7]} 7... Nge7 {[%clk 0:01:44.2]} 8. h4
{[%clk 0:02:57.8]} 8... h5 {[%clk 0:01:42.5]} 9. Nd5 {[%clk 0:02:54.3]} 9... Be6
{[%clk 0:01:36.9]} 10. Bc3 {[%clk 0:02:52.7]} 10... Bh6 {[%clk 0:01:34.5]} 11.
f4 {[%clk 0:02:31]} 11... Bxd5 {[%clk 0:01:10.5]} 12. exd5 {[%clk 0:01:42.7]}
12... Ne5 {[%clk 0:01:09]} 13. Kb1 {[%clk 0:01:22.7]} 13... O-O {[%clk
0:01:01.9]} 14. Qf2 {[%clk 0:01:21.4]} 14... Ng4 {[%clk 0:01:00.9]} 15. Qd4
{[%clk 0:01:21.1]} 15... f6 {[%clk 0:00:54.2]} 16. Nf3 {[%clk 0:01:06.4]} 16...
Nf5 {[%clk 0:00:52.7]} 17. Qd2 {[%clk 0:01:03.8]} 17... Ng3 {[%clk 0:00:37.9]}
18. Rg1 {[%clk 0:00:47.4]} 18... Ne4 {[%clk 0:00:28.8]} 19. Qd4 {[%clk
0:00:44.4]} 19... Re8 {[%clk 0:00:20.6]} 20. Bd3 {[%clk 0:00:38.6]} 20... Nxc3+
{[%clk 0:00:18.1]} 21. Qxc3 {[%clk 0:00:39.5]} 21... Kf7 {[%clk 0:00:12.3]} 22.
Rgf1 {[%clk 0:00:17]} 22... Bg7 {[%clk 0:00:11.7]} 23. Rde1 {[%clk 0:00:14.1]}
23... f5 {[%clk 0:00:09.6]} 24. Ng5+ {[%clk 0:00:12.9]} 24... Kg8 {[%clk
0:00:08.7]} 25. Qd2 {[%clk 0:00:10]} 25... Qf6 {[%clk 0:00:03.8]} 26. c3 {[%clk
0:00:09.1]} 26... Bh6 {[%clk 0:00:02.1]} 27. Ne6 {[%clk 0:00:08.9]} 27... Re7
{[%clk 0:00:02]} 28. g3 {[%clk 0:00:09]} 28... Rae8 {[%clk 0:00:01.9]} 29. Re2
{[%clk 0:00:09.3]} 29... Qf7 {[%clk 0:00:01.9]} 30. Rfe1 {[%clk 0:00:09.3]}
30... Nf6 {[%clk 0:00:02]} 31. c4 {[%clk 0:00:06.6]} 31... Nd7 {[%clk
0:00:02.4]} 32. b4 {[%clk 0:00:05.9]} 32... Qf6 {[%clk 0:00:02.7]} 33. Qb2
{[%clk 0:00:05.4]} 33... Qxb2+ {[%clk 0:00:02.1]} 34. Kxb2 {[%clk 0:00:05.7]}
34... Nf6 {[%clk 0:00:02.6]} 35. Kc3 {[%clk 0:00:05.4]} 35... Bg7 {[%clk
0:00:02.1]} 36. Kc2 {[%clk 0:00:05.7]} 36... Nd7 {[%clk 0:00:01.7]} 37. a4
{[%clk 0:00:05.1]} 37... Nb6 {[%clk 0:00:01.7]} 38. a5 {[%clk 0:00:05.3]} 38...
Nc8 {[%clk 0:00:02]} 39. Nxg7 {[%clk 0:00:04.9]} 39... Rxe2+ {[%clk 0:00:01.8]}
40. Rxe2 {[%clk 0:00:04.9]} 40... Rxe2+ {[%clk 0:00:01.8]} 41. Bxe2 {[%clk
0:00:05.8]} 41... Kxg7 {[%clk 0:00:02.1]} 42. Kd3 {[%clk 0:00:06.2]} 42... Ne7
{[%clk 0:00:01.6]} 43. Kd4 {[%clk 0:00:06.6]} 43... Kf6 {[%clk 0:00:02.3]} 44.
b5 {[%clk 0:00:06.8]} 44... a6 {[%clk 0:00:02.9]} 45. bxa6 {[%clk 0:00:06.1]}
45... bxa6 {[%clk 0:00:03.8]} 46. c5 {[%clk 0:00:06.6]} 46... c6 {[%clk
0:00:01.9]} 47. cxd6 {[%clk 0:00:04.8]} 47... Nxd5 {[%clk 0:00:02.2]} 48. Bxa6
{[%clk 0:00:05.4]} 48... Ke6 {[%clk 0:00:02.1]} 49. Bc4 {[%clk 0:00:01.4]} 49...
Kxd6 {[%clk 0:00:02.5]} 50. Bxd5 {[%clk 0:00:02.1]} 50... cxd5 {[%clk
0:00:02.8]} 51. a6 {[%clk 0:00:03]} 51... Kc6 {[%clk 0:00:03.1]} 52. a7 {[%clk
0:00:03.4]} 52... Kb7 {[%clk 0:00:03.7]} 53. Kxd5 {[%clk 0:00:04]} 53... Kxa7
{[%clk 0:00:04]} 54. Ke6 {[%clk 0:00:04.7]} 54... Kb6 {[%clk 0:00:04.7]} 55. Kf6
{[%clk 0:00:05.3]} 55... Kc5 {[%clk 0:00:05.6]} 56. Kxg6 {[%clk 0:00:06]} 56...
Kd4 {[%clk 0:00:06.5]} 57. Kxf5 {[%clk 0:00:06.7]} 57... Ke3 {[%clk 0:00:07.4]}
58. Kg5 {[%clk 0:00:07.3]} 58... Kf3 {[%clk 0:00:08.3]} 59. Kxh5 {[%clk
0:00:07.5]} 59... Kxg3 {[%clk 0:00:09.2]} 60. f5 {[%clk 0:00:08]} 60... Kf4
{[%clk 0:00:10]} 61. f6 {[%clk 0:00:08.7]} 1-0

[Event "Early-Titled-Tuesday-Blitz-September-12-2023"]
[Site "Chess.com"]
[Date "2023.09.12"]
[Round "9"]
[White "MANOJ_MISHRA123"]
[Black "FeketeBarika"]
[Result "0-1"]
[WhiteElo "2232"]
[BlackElo "2398"]
[TimeControl "180+1"]
[EndTime "9:46:15 PDT"]
[Termination "FeketeBarika won on time"]

1. d4 {[%clk 0:02:14.6]} 1... e6 {[%clk 0:02:59.4]} 2. Nf3 {[%clk 0:02:13.6]}
2... Nf6 {[%clk 0:02:59.1]} 3. Bf4 {[%clk 0:02:13.5]} 3... c5 {[%clk 0:02:58.9]}
4. e3 {[%clk 0:02:13.8]} 4... b6 {[%clk 0:02:59.4]} 5. c3 {[%clk 0:02:14]} 5...
Bb7 {[%clk 0:03:00.1]} 6. Nbd2 {[%clk 0:02:13.8]} 6... Be7 {[%clk 0:03:00.7]} 7.
Bd3 {[%clk 0:02:13.8]} 7... cxd4 {[%clk 0:03:01.4]} 8. exd4 {[%clk 0:02:13.8]}
8... d6 {[%clk 0:03:02.1]} 9. Qe2 {[%clk 0:02:13.5]} 9... Nbd7 {[%clk
0:03:02.7]} 10. h3 {[%clk 0:02:13.4]} 10... a6 {[%clk 0:03:02.8]} 11. Nc4 {[%clk
0:02:13.2]} 11... Qc7 {[%clk 0:02:59.5]} 12. a4 {[%clk 0:02:10]} 12... O-O
{[%clk 0:02:58.1]} 13. O-O {[%clk 0:02:02.8]} 13... Rfe8 {[%clk 0:02:34.4]} 14.
Rfe1 {[%clk 0:01:52.1]} 14... Bf8 {[%clk 0:02:28.2]} 15. Ng5 {[%clk 0:01:30.9]}
15... h6 {[%clk 0:02:19.9]} 16. Nf3 {[%clk 0:01:30.9]} 16... Nd5 {[%clk
0:02:12.8]} 17. Bg3 {[%clk 0:01:24.8]} 17... N7f6 {[%clk 0:02:13.3]} 18. Ne3
{[%clk 0:01:19]} 18... Nh5 {[%clk 0:02:02]} 19. Nxd5 {[%clk 0:01:14.5]} 19...
exd5 {[%clk 0:01:57.1]} 20. Qd2 {[%clk 0:01:08.6]} 20... Nxg3 {[%clk 0:01:56.1]}
21. fxg3 {[%clk 0:01:08.8]} 21... Qd7 {[%clk 0:01:54]} 22. Qf4 {[%clk
0:01:06.7]} 22... Rxe1+ {[%clk 0:01:38]} 23. Rxe1 {[%clk 0:01:05.1]} 23... Qxa4
{[%clk 0:01:38.2]} 24. Qf5 {[%clk 0:00:52]} 24... g6 {[%clk 0:01:37.5]} 25. Qg4
{[%clk 0:00:51.4]} 25... Re8 {[%clk 0:01:36.1]} 26. Rf1 {[%clk 0:00:26.7]} 26...
Bc8 {[%clk 0:01:36]} 27. Qf4 {[%clk 0:00:20.8]} 27... Qd7 {[%clk 0:01:36.4]} 28.
g4 {[%clk 0:00:19.3]} 28... Bg7 {[%clk 0:01:35.1]} 29. g5 {[%clk 0:00:18.8]}
29... h5 {[%clk 0:01:35.3]} 30. Nh4 {[%clk 0:00:14.9]} 30... Qe6 {[%clk
0:01:31.9]} 31. Kh2 {[%clk 0:00:11]} 31... Re7 {[%clk 0:01:30.7]} 32. Nf3 {[%clk
0:00:09.3]} 32... b5 {[%clk 0:01:15.6]} 33. Re1 {[%clk 0:00:08.9]} 33... Qd7
{[%clk 0:01:16]} 34. Rxe7 {[%clk 0:00:08.1]} 34... Qxe7 {[%clk 0:01:16.9]} 35.
Qd2 {[%clk 0:00:06.8]} 35... Bd7 {[%clk 0:01:16.7]} 36. Qe2 {[%clk 0:00:05.6]}
36... Qxe2 {[%clk 0:01:15.7]} 37. Bxe2 {[%clk 0:00:06.5]} 37... a5 {[%clk
0:01:16]} 38. Kg3 {[%clk 0:00:06.6]} 38... Kf8 {[%clk 0:01:13]} 39. Kf4 {[%clk
0:00:06.4]} 39... Ke7 {[%clk 0:01:12.9]} 40. g4 {[%clk 0:00:06.7]} 40... hxg4
{[%clk 0:01:12.7]} 41. hxg4 {[%clk 0:00:07.6]} 41... Ke6 {[%clk 0:01:11.9]} 42.
Ne1 {[%clk 0:00:07.6]} 42... b4 {[%clk 0:01:09.4]} 43. cxb4 {[%clk 0:00:07.3]}
43... axb4 {[%clk 0:01:10.3]} 44. Nf3 {[%clk 0:00:06.6]} 44... Ba4 {[%clk
0:01:08.7]} 45. Ba6 {[%clk 0:00:06.1]} 45... Bd1 {[%clk 0:01:05.9]} 46. Bc8+
{[%clk 0:00:05.7]} 46... Ke7 {[%clk 0:01:06.5]} 47. Ke3 {[%clk 0:00:01.7]} 47...
Bxf3 {[%clk 0:01:05.7]} 48. Kxf3 {[%clk 0:00:02.6]} 48... Bxd4 {[%clk
0:01:05.9]} 49. b3 {[%clk 0:00:03.3]} 49... Bc3 {[%clk 0:01:02.7]} 50. Bb7
{[%clk 0:00:03.4]} 50... Ke6 {[%clk 0:01:02.3]} 51. Ke3 {[%clk 0:00:03.5]} 51...
Ke5 {[%clk 0:01:00.6]} 52. Bc8 {[%clk 0:00:03.4]} 52... Bb2 {[%clk 0:00:59.6]}
53. Bd7 {[%clk 0:00:03.6]} 53... Bc1+ {[%clk 0:00:58.7]} 54. Kf3 {[%clk
0:00:04.1]} 54... Bxg5 {[%clk 0:00:58.4]} 55. Be8 {[%clk 0:00:05]} 55... Ke6
{[%clk 0:00:56.9]} 56. Ke2 {[%clk 0:00:04.6]} 56... Bc1 {[%clk 0:00:54.8]} 57.
Kd3 {[%clk 0:00:04.9]} 57... Ke7 {[%clk 0:00:47.4]} 58. Bc6 {[%clk 0:00:04.1]}
58... Ke6 {[%clk 0:00:48]} 59. Be8 {[%clk 0:00:04.2]} 59... Bb2 {[%clk
0:00:47.9]} 60. Kc2 {[%clk 0:00:03.2]} 60... Bc3 {[%clk 0:00:47.7]} 61. Kd3
{[%clk 0:00:03.6]} 61... g5 {[%clk 0:00:46]} 62. Bb5 {[%clk 0:00:02.6]} 62... f5
{[%clk 0:00:46]} 63. gxf5+ {[%clk 0:00:01.5]} 63... Kxf5 {[%clk 0:00:46.9]} 64.
Bd7+ {[%clk 0:00:01.9]} 64... Kf4 {[%clk 0:00:46.9]} 65. Be6 {[%clk 0:00:02.1]}
65... Ke5 {[%clk 0:00:46.3]} 66. Bg4 {[%clk 0:00:02.1]} 66... Kf4 {[%clk
0:00:46]} 67. Be6 {[%clk 0:00:02.3]} 67... d4 {[%clk 0:00:46.7]} 0-1

[Event "Early-Titled-Tuesday-Blitz-September-12-2023"]
[Site "Chess.com"]
[Date "2023.09.12"]
[Round "9"]
[White "jraosam"]
[Black "Zavgorodniy_Sergiy"]
[Result "0-1"]
[WhiteElo "2022"]
[BlackElo "2527"]
[TimeControl "180+1"]
[EndTime "9:46:17 PDT"]
[Termination "Zavgorodniy_Sergiy won on time"]

1. e4 {[%clk 0:02:59.7]} 1... c6 {[%clk 0:02:59.8]} 2. d4 {[%clk 0:02:59.3]}
2... d5 {[%clk 0:02:59]} 3. Nc3 {[%clk 0:02:51.2]} 3... dxe4 {[%clk 0:02:59]} 4.
Nxe4 {[%clk 0:02:52.1]} 4... Bf5 {[%clk 0:02:59]} 5. Ng3 {[%clk 0:02:46.8]} 5...
Bg6 {[%clk 0:02:59]} 6. h4 {[%clk 0:02:47.3]} 6... h6 {[%clk 0:02:58.8]} 7. Nf3
{[%clk 0:02:47.9]} 7... Nd7 {[%clk 0:02:58.5]} 8. h5 {[%clk 0:02:48.2]} 8... Bh7
{[%clk 0:02:58.7]} 9. Bd3 {[%clk 0:02:48.9]} 9... Bxd3 {[%clk 0:02:58.5]} 10.
Qxd3 {[%clk 0:02:49.8]} 10... e6 {[%clk 0:02:58.9]} 11. Bd2 {[%clk 0:02:48.3]}
11... Ngf6 {[%clk 0:02:59]} 12. O-O-O {[%clk 0:02:48.1]} 12... Be7 {[%clk
0:02:58.7]} 13. Kb1 {[%clk 0:02:48.3]} 13... O-O {[%clk 0:02:57.7]} 14. Ne4
{[%clk 0:02:46.8]} 14... Nxe4 {[%clk 0:02:57.4]} 15. Qxe4 {[%clk 0:02:47.7]}
15... Nf6 {[%clk 0:02:57.1]} 16. Qe2 {[%clk 0:02:47.6]} 16... Qd5 {[%clk
0:02:56.5]} 17. Be3 {[%clk 0:02:48.1]} 17... Ng4 {[%clk 0:02:55.4]} 18. Bc1
{[%clk 0:02:47]} 18... Rad8 {[%clk 0:02:48.3]} 19. c4 {[%clk 0:02:46.1]} 19...
Qf5+ {[%clk 0:02:46.8]} 20. Ka1 {[%clk 0:02:46.7]} 20... Rd7 {[%clk 0:02:29.7]}
21. Nh4 {[%clk 0:02:24.5]} 21... Bxh4 {[%clk 0:02:21.1]} 22. Rxh4 {[%clk
0:02:25.4]} 22... Nf6 {[%clk 0:02:14.8]} 23. Be3 {[%clk 0:01:53]} 23... Rfd8
{[%clk 0:02:06.7]} 24. Rg1 {[%clk 0:01:49.4]} 24... b5 {[%clk 0:01:37.9]} 25. c5
{[%clk 0:01:29.8]} 25... Nd5 {[%clk 0:01:30.6]} 26. Bd2 {[%clk 0:01:01.3]} 26...
Nf6 {[%clk 0:01:21.4]} 27. Be3 {[%clk 0:00:47.3]} 27... Nd5 {[%clk 0:01:15]} 28.
Bd2 {[%clk 0:00:47.1]} 28... Qc2 {[%clk 0:01:08.1]} 29. Rc1 {[%clk 0:00:38.6]}
29... Qa4 {[%clk 0:01:02.8]} 30. b3 {[%clk 0:00:31]} 30... Qa3 {[%clk
0:00:53.2]} 31. Rg1 {[%clk 0:00:26.3]} 31... Nb4 {[%clk 0:00:48.3]} 32. Bc1
{[%clk 0:00:26.4]} 32... Qa5 {[%clk 0:00:44.4]} 33. Rd1 {[%clk 0:00:16.1]} 33...
Nd5 {[%clk 0:00:36.5]} 34. Rd3 {[%clk 0:00:10.9]} 34... Kf8 {[%clk 0:00:31.1]}
35. Bd2 {[%clk 0:00:10.1]} 35... Qc7 {[%clk 0:00:24.5]} 36. Rf3 {[%clk
0:00:06.5]} 36... Ne7 {[%clk 0:00:18.1]} 37. Qe4 {[%clk 0:00:05.7]} 37... Rxd4
{[%clk 0:00:15.3]} 38. Qxd4 {[%clk 0:00:06.3]} 38... Rxd4 {[%clk 0:00:15.9]} 39.
Rxd4 {[%clk 0:00:07.2]} 39... Nd5 {[%clk 0:00:16.3]} 40. Re4 {[%clk 0:00:03.1]}
40... a5 {[%clk 0:00:14.2]} 41. Rxe6 {[%clk 0:00:03]} 41... a4 {[%clk
0:00:14.4]} 42. Rd6 {[%clk 0:00:02.3]} 42... axb3 {[%clk 0:00:13.5]} 43. axb3
{[%clk 0:00:03.2]} 43... Qa7+ {[%clk 0:00:12.6]} 44. Kb2 {[%clk 0:00:03.6]}
44... Qxc5 {[%clk 0:00:12.8]} 45. Rd7 {[%clk 0:00:03.5]} 45... Qd4+ {[%clk
0:00:12.2]} 46. Kc2 {[%clk 0:00:03.7]} 46... Ne3+ {[%clk 0:00:11]} 47. Bxe3
{[%clk 0:00:01.8]} 47... Qxd7 {[%clk 0:00:11.3]} 48. Bc5+ {[%clk 0:00:02.4]}
48... Kg8 {[%clk 0:00:11.5]} 49. Rd3 {[%clk 0:00:02.2]} 49... Qf5 {[%clk
0:00:10.8]} 50. b4 {[%clk 0:00:01.4]} 50... Qxh5 {[%clk 0:00:10.1]} 51. g3
{[%clk 0:00:01.6]} 51... Qe2+ {[%clk 0:00:09.3]} 52. Kc3 {[%clk 0:00:02]} 52...
Kh7 {[%clk 0:00:07.9]} 53. Rd7 {[%clk 0:00:01.4]} 53... Qe1+ {[%clk 0:00:07.7]}
0-1

[Event "Early-Titled-Tuesday-Blitz-September-12-2023"]
[Site "Chess.com"]
[Date "2023.09.12"]
[Round "9"]
[White "GeorgiosSouleidis"]
[Black "Dewarfd"]
[Result "0-1"]
[WhiteElo "2514"]
[BlackElo "2188"]
[TimeControl "180+1"]
[EndTime "9:46:19 PDT"]
[Termination "Dewarfd won on time"]

1. e4 {[%clk 0:03:00.9]} 1... e5 {[%clk 0:03:00.4]} 2. Nc3 {[%clk 0:03:00.5]}
2... Nf6 {[%clk 0:02:59.1]} 3. d4 {[%clk 0:03:00.8]} 3... exd4 {[%clk
0:02:57.4]} 4. Qxd4 {[%clk 0:03:01.7]} 4... Nc6 {[%clk 0:02:56]} 5. Qd3 {[%clk
0:03:02.3]} 5... Bb4 {[%clk 0:02:47.4]} 6. Bd2 {[%clk 0:03:02]} 6... d6 {[%clk
0:02:34.8]} 7. O-O-O {[%clk 0:02:59.9]} 7... Be6 {[%clk 0:02:29.6]} 8. Kb1
{[%clk 0:02:56.4]} 8... O-O {[%clk 0:02:18.9]} 9. Qg3 {[%clk 0:02:50.4]} 9...
Ne5 {[%clk 0:02:10.4]} 10. f3 {[%clk 0:02:45.7]} 10... Ng6 {[%clk 0:02:05.8]}
11. h4 {[%clk 0:02:41.7]} 11... Nh5 {[%clk 0:02:03.2]} 12. Qh2 {[%clk
0:02:39.6]} 12... d5 {[%clk 0:01:36.8]} 13. g4 {[%clk 0:02:28.9]} 13... Bd6
{[%clk 0:01:34]} 14. Qf2 {[%clk 0:01:45.2]} 14... Bg3 {[%clk 0:01:14.9]} 15. Qg2
{[%clk 0:01:22.6]} 15... Nxh4 {[%clk 0:01:14.8]} 16. Rxh4 {[%clk 0:01:22.3]}
16... Qxh4 {[%clk 0:00:51.1]} 17. gxh5 {[%clk 0:01:22.4]} 17... dxe4 {[%clk
0:00:44]} 18. Nxe4 {[%clk 0:01:20.8]} 18... Be5 {[%clk 0:00:42]} 19. h6 {[%clk
0:01:08.8]} 19... g6 {[%clk 0:00:29.7]} 20. Bg5 {[%clk 0:01:00.1]} 20... Qh2
{[%clk 0:00:24.9]} 21. Qxh2 {[%clk 0:00:39.1]} 21... Bxh2 {[%clk 0:00:25.8]} 22.
Ne2 {[%clk 0:00:32.4]} 22... Be5 {[%clk 0:00:24.1]} 23. Bf6 {[%clk 0:00:31.8]}
23... Bxf6 {[%clk 0:00:22]} 24. Nxf6+ {[%clk 0:00:32.7]} 24... Kh8 {[%clk
0:00:22.6]} 25. Nc3 {[%clk 0:00:33]} 25... Rfd8 {[%clk 0:00:22.7]} 26. Bd3
{[%clk 0:00:32.5]} 26... c5 {[%clk 0:00:20.7]} 27. b3 {[%clk 0:00:29.9]} 27...
a6 {[%clk 0:00:20.4]} 28. Nce4 {[%clk 0:00:27.1]} 28... Rac8 {[%clk 0:00:19.2]}
29. Ng5 {[%clk 0:00:27.1]} 29... c4 {[%clk 0:00:17.8]} 30. Nxe6 {[%clk
0:00:26.7]} 30... cxd3 {[%clk 0:00:18.3]} 31. cxd3 {[%clk 0:00:05.6]} 31... fxe6
{[%clk 0:00:17.8]} 32. Kb2 {[%clk 0:00:04.9]} 32... Rf8 {[%clk 0:00:16.7]} 33.
Ne4 {[%clk 0:00:05.4]} 33... Kg8 {[%clk 0:00:15.6]} 34. Ng5 {[%clk 0:00:05.5]}
34... Rf5 {[%clk 0:00:14.8]} 35. Nxe6 {[%clk 0:00:05.3]} 35... Rxf3 {[%clk
0:00:12.2]} 36. Rd2 {[%clk 0:00:03.9]} 36... Re3 {[%clk 0:00:10.6]} 37. Nf4
{[%clk 0:00:03.3]} 37... Kf7 {[%clk 0:00:08.6]} 38. Nd5 {[%clk 0:00:03.3]} 38...
Re1 {[%clk 0:00:06.5]} 39. Rf2+ {[%clk 0:00:03.1]} 39... Ke6 {[%clk 0:00:06.2]}
40. Nb6 {[%clk 0:00:02.7]} 40... Rd8 {[%clk 0:00:05.8]} 41. Kc3 {[%clk 0:00:02]}
41... Rc1+ {[%clk 0:00:05.7]} 42. Kd2 {[%clk 0:00:02.3]} 42... Rc6 {[%clk
0:00:05.9]} 43. Nc4 {[%clk 0:00:02.3]} 43... b5 {[%clk 0:00:05.4]} 44. Re2+
{[%clk 0:00:02.8]} 44... Kf6 {[%clk 0:00:03.8]} 45. Ne3 {[%clk 0:00:03.7]} 45...
Rcd6 {[%clk 0:00:04.1]} 46. Rf2+ {[%clk 0:00:04.6]} 46... Kg5 {[%clk 0:00:04.3]}
47. Ke2 {[%clk 0:00:05.2]} 47... Kxh6 {[%clk 0:00:05]} 48. Rh2+ {[%clk
0:00:05.4]} 48... Kg7 {[%clk 0:00:05.3]} 49. Kf3 {[%clk 0:00:03.6]} 49... Rxd3
{[%clk 0:00:05.5]} 50. Rc2 {[%clk 0:00:04.4]} 50... Re8 {[%clk 0:00:05.4]} 51.
Re2 {[%clk 0:00:01.8]} 51... Rexe3+ {[%clk 0:00:04.9]} 52. Rxe3 {[%clk
0:00:02.7]} 52... Rxe3+ {[%clk 0:00:04.8]} 53. Kxe3 {[%clk 0:00:03.6]} 53... g5
{[%clk 0:00:05.1]} 54. b4 {[%clk 0:00:03.6]} 54... Kf6 {[%clk 0:00:05.7]} 0-1